Workbook

Sheet dilluns dijous mati
C1: GA:
A2: Curs 2024-2025
C3: SLIPI:
A7: Tipus | F7: Assignatura:
A8: Gran Grup | B8: GG | C8: =COUNTIF(E19:LD42,"GG")*0.25 -> 0 | F8: Semestre:
A9: Seminari | B9: A | C9: =COUNTIF(E19:LD42,"A")*0.25 -> 0 | F9: Grau: | L9: Grup: | R9: Curs:
A10: Seminari | B10: B | C10: =COUNTIF(E19:LD42,"B")*0.25 -> 0 | F10: Model docent: | L10: ECTS:
A11: Seminari | B11: C | C11: =COUNTIF(E19:LD42,"C")*0.25 -> 0 | F11: N. Alumnes: | L11: Professor/a respons. assig.:
A12: Avaluació | B12: AV | C12: =COUNTIF(E19:LD42,"AV")*0.25 -> 0 | F12: Hores Gran Grup: | L12: Professors/res assignatures:
A13: Pràct. Labor. | B13: PLA | C13: =COUNTIF(E19:LD42,"PLA")*0.25 -> 0 | F13: Hores per Seminari:
A14: Pràct. Labor. | B14: PLB | C14: =COUNTIF(E19:LD42,"PLB")*0.25 -> 0 | F14: Hores per Pràctiques Laboratori:
A15: Pràct. Labor. | B15: PLC | C15: =COUNTIF(E19:LD42,"PLC")*0.25 -> 0
A16: Tutories | B16: T | C16: =COUNTIF(E19:LD42,"T")*0.25 -> 0
A18: Horari | E18: 2024-09-09 | H18: =E18+7 -> 45551 | I18: =E18+3 -> 2024-09-12 | L18: =I18+7 -> 45554 | M18: =I18+4 -> 2024-09-16 | P18: =M18+7 -> 45558 | Q18: =M18+3 -> 2024-09-19 | T18: =Q18+7 -> 45561 | U18: =Q18+4 -> 2024-09-23 | X18: =U18+7 -> 45565 | Y18: =U18+3 -> 2024-09-26 | AB18: =Y18+7 -> 45568 | AC18: =Y18+4 -> 2024-09-30 | AF18: =AC18+7 -> 45572 | AG18: =AC18+3 -> 2024-10-03 | AJ18: =AG18+7 -> 45575 | AK18: =AG18+4 -> 2024-10-07 | AN18: =AK18+7 -> 2024-10-14 | AO18: =AK18+3 -> 2024-10-10 | AR18: =AO18+7 -> 45582 | AS18: =AO18+4 -> 2024-10-14 | AV18: =AS18+7 -> 45586 | AW18: =AS18+3 -> 2024-10-17 | AZ18: =AW18+7 -> 45589 | BA18: =AW18+4 -> 2024-10-21 | BD18: =BA18+7 -> 45593 | BE18: =BA18+3 -> 2024-10-24 | BH18: =BE18+7 -> 45596 | BI18: =BE18+4 -> 2024-10-28 | BL18: =BI18+7 -> 45600 | BM18: =BI18+3 -> 2024-10-31 | BP18: =BM18+7 -> 45603 | BQ18: =BM18+4 -> 2024-11-04 | BT18: =BQ18+7 -> 45607 | BU18: =BQ18+3 -> 2024-11-07 | BX18: =BU18+7 -> 45610 | BY18: =BU18+4 -> 2024-11-11 | CB18: =BY18+7 -> 45614 | CC18: =BY18+3 -> 2024-11-14 | CF18: =CC18+7 -> 45617 | CG18: =CC18+4 -> 2024-11-18 | CJ18: =CG18+7 -> 45621 | CK18: =CG18+3 -> 2024-11-21 | CN18: =CK18+7 -> 45624 | CO18: =CK18+4 -> 2024-11-25 | CR18: =CO18+7 -> 45628 | CS18: =CO18+3 -> 2024-11-28 | CV18: =CS18+7 -> 45631 | CW18: =CS18+4 -> 2024-12-02 | CZ18: =CW18+7 -> 45635 | DA18: =CW18+3 -> 2024-12-05 | DD18: =DA18+7 -> 45638 | DE18: =DA18+4 -> 2024-12-09 | DH18: =DE18+7 -> 45642 | DI18: =DE18+3 -> 2024-12-12 | DL18: =DI18+7 -> 45645 | DM18: =DI18+4 -> 2024-12-16 | DP18: =DM18+7 -> 45649 | DQ18: =DM18+3 -> 2024-12-19 | DT18: =DQ18+7 -> 45652 | DU18: 2025-01-09 | DX18: =DU18+7 -> 45673 | DY18: =DU18+4 -> 2025-01-13 | EB18: =DY18+7 -> 45677 | EC18: =DY18+3 -> 2025-01-16 | EF18: =EC18+7 -> 45680 | EG18: =EC18+4 -> 2025-01-20 | EJ18: =EG18+7 -> 45684 | EK18: =EG18+3 -> 2025-01-23 | EN18: =EK18+7 -> 45687 | EO18: =EK18+4 -> 2025-01-27 | ER18: =EO18+7 -> 45691 | ES18: =EO18+3 -> 2025-01-30 | EV18: =ES18+7 -> 45694 | EW18: =ES18+4 -> 2025-02-03 | EZ18: =EW18+7 -> 45698 | FA18: =EW18+3 -> 2025-02-06 | FD18: =FA18+7 -> 45701 | FE18: =FA18+4 -> 2025-02-10 | FH18: =FE18+7 -> 45705 | FI18: =FE18+3 -> 2025-02-13 | FL18: =FI18+7 -> 45708 | FM18: =FI18+4 -> 2025-02-17 | FP18: =FM18+7 -> 45712 | FQ18: =FM18+3 -> 2025-02-20 | FT18: =FQ18+7 -> 45715 | FU18: =FQ18+4 -> 2025-02-24 | FX18: =FU18+7 -> 45719 | FY18: =FU18+3 -> 2025-02-27 | GB18: =FY18+7 -> 45722 | GC18: =FY18+4 -> 2025-03-03 | GF18: =GC18+7 -> 45726 | GG18: =GC18+3 -> 2025-03-06 | GJ18: =GG18+7 -> 45729 | GK18: =GG18+4 -> 2025-03-10 | GN18: =GK18+7 -> 45733 | GO18: =GK18+3 -> 2025-03-13 | GR18: =GO18+7 -> 45736 | GS18: =GO18+4 -> 2025-03-17 | GV18: =GS18+7 -> 45740 | GW18: =GS18+3 -> 2025-03-20 | GZ18: =GW18+7 -> 45743 | HA18: =GW18+4 -> 2025-03-24 | HD18: =HA18+7 -> 45747 | HE18: =HA18+3 -> 2025-03-27 | HH18: =HE18+7 -> 45750 | HI18: =HE18+4 -> 2025-03-31 | HL18: =HI18+7 -> 45754 | HM18: =HI18+3 -> 2025-04-03 | HP18: =HM18+7 -> 45757 | HQ18: =HM18+4 -> 2025-04-07 | HT18: =HQ18+7 -> 45761 | HU18: =HQ18+3 -> 2025-04-10 | HX18: =HU18+7 -> 45764 | HY18: 2025-04-24 | IB18: =HY18+7 -> 45778 | IC18: =HY18+4 -> 2025-04-28 | IF18: =IC18+7 -> 45782 | IG18: =IC18+3 -> 2025-05-01 | IJ18: =IG18+7 -> 45785 | IK18: =IG18+4 -> 2025-05-05 | IN18: =IK18+7 -> 45789 | IO18: =IK18+3 -> 2025-05-08 | IR18: =IO18+7 -> 45792 | IS18: =IO18+4 -> 2025-05-12 | IV18: =IS18+7 -> 45796 | IW18: =IS18+3 -> 2025-05-15 | IZ18: =IW18+7 -> 45799 | JA18: =IW18+4 -> 2025-05-19 | JD18: =JA18+7 -> 45803 | JE18: =JA18+3 -> 2025-05-22 | JH18: =JE18+7 -> 45806 | JI18: =JE18+4 -> 2025-05-26 | JL18: =JI18+7 -> 45810 | JM18: =JI18+3 -> 2025-05-29 | JP18: =JM18+7 -> 45813 | JQ18: =JM18+4 -> 2025-06-02 | JT18: =JQ18+7 -> 45817 | JU18: =JQ18+3 -> 2025-06-05 | JX18: =JU18+7 -> 45820 | JY18: =JU18+4 -> 2025-06-09 | KB18: =JY18+7 -> 45824 | KC18: =JY18+3 -> 2025-06-12 | KF18: =KC18+7 -> 45827 | KG18: =KC18+4 -> 2025-06-16 | KJ18: =KG18+7 -> 45831 | KK18: =KG18+3 -> 2025-06-19 | KN18: =KK18+7 -> 45834 | KO18: =KK18+4 -> 2025-06-23 | KR18: =KO18+7 -> 45838 | KS18: =KO18+3 -> 2025-06-26 | KV18: =KS18+7 -> 45841 | KW18: =KS18+4 -> 2025-06-30 | KZ18: =KW18+7 -> 45845 | LA18: =KW18+3 -> 2025-07-03 | LD18: =LA18+7 -> 45848
A19: 08:00:00 | C19: 08:15:00
A20: 08:15:00 | C20: 08:30:00
A21: 08:30:00 | C21: 08:45:00
A22: 08:45:00 | C22: 09:00:00
A23: 09:00:00 | C23: 09:15:00
A24: 09:15:00 | C24: 09:30:00
A25: 09:30:00 | C25: 09:45:00
A26: 09:45:00 | C26: 10:00:00
A27: 10:00:00 | C27: 10:15:00
A28: 10:15:00 | C28: 10:30:00
A29: 10:30:00 | C29: 10:45:00
A30: 10:45:00 | C30: 11:00:00
A31: 11:00:00 | C31: 11:15:00
A32: 11:15:00 | C32: 11:30:00
A33: 11:30:00 | C33: 11:45:00
A34: 11:45:00 | C34: 12:00:00
A35: 12:00:00 | C35: 12:15:00
A36: 12:15:00 | C36: 12:30:00
A37: 12:30:00 | C37: 12:45:00
A38: 12:45:00 | C38: 13:00:00
A39: 13:00:00 | C39: 13:15:00
A40: 13:15:00 | C40: 13:30:00
A41: 13:30:00 | C41: 13:45:00
A42: 13:45:00 | C42: 14:00:00
A43: Espai Assignat
A45: Comentaris: | BA45: Tutories Acadèmiques | BQ45: Activitat Campus | EC45: Activitat Campus | GS45: Tutories Acadèmiques | IG45: Festiu - Festa del Treball | JY45: Festiu- Pasqua Granada
A96: Model | B96: Aula | D96: ECTS | E96: Assignatures | J96: Grups | K96: Graus | L96: Sem | M96: Curs
A97: 1A | B97: 11 (GA/100) | D97: 4 | K97: GEI | L97: 1er | M97: 1
A98: 1B | B98: 12 (GA/101) | D98: 3 | E98: 103578 Aprenentatge Integrat de Continguts i Llengua (AICLE) a l'Educació Primària | J98: 1 | K98: GEP | L98: 2on | M98: 2
A99: 2 | B99: 13 (GA/102) | D99: 4 | E99: 103580 L'Aprenentatge de Llengua Estrangera (Anglès) en l'Educació Primària Mitjançant les TIC | J99: 1/20 | K99: GEP-GEI | L99: Anual | M99: 3
A100: 3 | B100: 14 (GA/103) | D100: 5 | J100: 1/70 | K100: GPE-GES | M100: 4
A101: 4 | B101: 15 (GA/104) | D101: 6 | J101: 2 | K101: GES
A102: 5 | B102: 16 (GA/111) | D102: 7 | J102: 3 | K102: GPE
A103: 6 | B103: 17 (GA/112) | D103: 8 | J103: 4
B104: 18 (GA/117) | D104: 9 | J104: 4/40
B105: 19 (GA/119) | D105: 10 | J105: 20
B106: 21 (GA/200) | D106: 12 | J106: 21
B107: 22 (GA/201) | D107: 15 | J107: 31
B108: 24 (GA/203) | J108: 41
B109: 25 (GA/204) | J109: 61
B110: 26 (GA/211) | J110: 62
B111: 27 (GA/212) | J111: 70
B112: 28 (GA/218) | J112: 71
B113: 29 (GA/219) | J113: 90
B114: 31 (GA/300) | J114: 90/1
B115: 33 (GA/302)
B116: 35 (GA/304)
B117: 36 (GA/311)
B118: 37 (GA/312)
B119: 39 ( GA/319)
B120: 41 (GA/400)
B121: 43 ( GA/402)
B122: 44 (GA/403)
B123: 45 (GA/404)
B124: 46 (GA/411)
B125: 47 (GA/412)
B126: 48 (GA/418)
B127: 49 (GA/419)
B128: 61 (G6/005)
B129: 62 (G6/006)
B130: 63 ( G6/007)
B131: E.T (G6/009)
B132: 65 (G6/107)
B133: 69 (G6/208)
B134: 51 (G5/-104)
B135: 52 (G5/-106)
B136: 71 (GL/505)
B137: 72 (GL/502)
B138: 73 (GL/305)
B139: 74 (GL/402)
B140: 81 (GS/012)
B141: 82 (GS/013)
B142: 83 (GB/002)
B143: L1 (GL/102)
B144: L2 (GL/105)
B145: L3 (GA/318)
B146: Inf2 (G6/106)
B147: Inf3 (G6/105)
B148: Inf4 (G6/103)
B149: Inf5 (G6/208)
B150: Inf6 (G6/202)
B151: S1 (GB/012)
B152: S2 (GB/003)
B153: S.foniatria (GB/005)
B154: S. Polivalent (GD/000)
B155: Taller 1 (GL/308)
B156: Taller 2 (GL/306)

Sheet dilluns dijous tarda
C1: GA:
A2: Curs 2024-2025
C3: SLIPI:
A7: Tipus | F7: Assignatura:
A8: Gran Grup | B8: GG | C8: =COUNTIF(E19:LD42,"GG")*0.25 -> 0 | F8: Semestre:
A9: Seminari | B9: A | C9: =COUNTIF(E19:LD42,"A")*0.25 -> 0 | F9: Grau: | L9: Grup: | R9: Curs:
A10: Seminari | B10: B | C10: =COUNTIF(E19:LD42,"B")*0.25 -> 0 | F10: Model docent: | L10: ECTS:
A11: Seminari | B11: C | C11: =COUNTIF(E19:LD42,"C")*0.25 -> 0 | F11: N. Alumnes: | L11: Professor/a respons. assig.:
A12: Avaluació | B12: AV | C12: =COUNTIF(E19:LD42,"AV")*0.25 -> 0 | F12: Hores Gran Grup: | L12: Professors/res assignatures:
A13: Pràct. Labor. | B13: PLA | C13: =COUNTIF(E19:LD42,"PLA")*0.25 -> 0 | F13: Hores per Seminari:
A14: Pràct. Labor. | B14: PLB | C14: =COUNTIF(E19:LD42,"PLB")*0.25 -> 0 | F14: Hores per Pràctiques Laboratori:
A15: Pràct. Labor. | B15: PLC | C15: =COUNTIF(E19:LD42,"PLC")*0.25 -> 0
A16: Tutories | B16: T | C16: =COUNTIF(E19:LD42,"T")*0.25 -> 0
A18: Horari | E18: 2024-09-09 | H18: =E18+7 -> 45551 | I18: =E18+3 -> 2024-09-12 | L18: =I18+7 -> 45554 | M18: =I18+4 -> 2024-09-16 | P18: =M18+7 -> 45558 | Q18: =M18+3 -> 2024-09-19 | T18: =Q18+7 -> 45561 | U18: =Q18+4 -> 2024-09-23 | X18: =U18+7 -> 45565 | Y18: =U18+3 -> 2024-09-26 | AB18: =Y18+7 -> 45568 | AC18: =Y18+4 -> 2024-09-30 | AF18: =AC18+7 -> 45572 | AG18: =AC18+3 -> 2024-10-03 | AJ18: =AG18+7 -> 45575 | AK18: =AG18+4 -> 2024-10-07 | AN18: =AK18+7 -> 45579 | AO18: =AK18+3 -> 2024-10-10 | AR18: =AO18+7 -> 45582 | AS18: =AO18+4 -> 2024-10-14 | AV18: =AS18+7 -> 45586 | AW18: =AS18+3 -> 2024-10-17 | AZ18: =AW18+7 -> 45589 | BA18: =AW18+4 -> 2024-10-21 | BD18: =BA18+7 -> 45593 | BE18: =BA18+3 -> 2024-10-24 | BH18: =BE18+7 -> 45596 | BI18: =BE18+4 -> 2024-10-28 | BL18: =BI18+7 -> 45600 | BM18: =BI18+3 -> 2024-10-31 | BP18: =BM18+7 -> 45603 | BQ18: =BM18+4 -> 2024-11-04 | BT18: =BQ18+7 -> 45607 | BU18: =BQ18+3 -> 2024-11-07 | BX18: =BU18+7 -> 45610 | BY18: =BU18+4 -> 2024-11-11 | CB18: =BY18+7 -> 45614 | CC18: =BY18+3 -> 2024-11-14 | CF18: =CC18+7 -> 45617 | CG18: =CC18+4 -> 2024-11-18 | CJ18: =CG18+7 -> 45621 | CK18: =CG18+3 -> 2024-11-21 | CN18: =CK18+7 -> 45624 | CO18: =CK18+4 -> 2024-11-25 | CR18: =CO18+7 -> 45628 | CS18: =CO18+3 -> 2024-11-28 | CV18: =CS18+7 -> 45631 | CW18: =CS18+4 -> 2024-12-02 | CZ18: =CW18+7 -> 45635 | DA18: =CW18+3 -> 2024-12-05 | DD18: =DA18+7 -> 45638 | DE18: =DA18+4 -> 2024-12-09 | DH18: =DE18+7 -> 45642 | DI18: =DE18+3 -> 2024-12-12 | DL18: =DI18+7 -> 45645 | DM18: =DI18+4 -> 2024-12-16 | DP18: =DM18+7 -> 45649 | DQ18: =DM18+3 -> 2024-12-19 | DT18: =DQ18+7 -> 45652 | DU18: 2025-01-09 | DX18: =DU18+7 -> 45673 | DY18: =DU18+4 -> 2025-01-13 | EB18: =DY18+7 -> 45677 | EC18: =DY18+3 -> 2025-01-16 | EF18: =EC18+7 -> 45680 | EG18: =EC18+4 -> 2025-01-20 | EJ18: =EG18+7 -> 45684 | EK18: =EG18+3 -> 2025-01-23 | EN18: =EK18+7 -> 45687 | EO18: =EK18+4 -> 2025-01-27 | ER18: =EO18+7 -> 45691 | ES18: =EO18+3 -> 2025-01-30 | EV18: =ES18+7 -> 45694 | EW18: =ES18+4 -> 2025-02-03 | EZ18: =EW18+7 -> 45698 | FA18: =EW18+3 -> 2025-02-06 | FD18: =FA18+7 -> 45701 | FE18: =FA18+4 -> 2025-02-10 | FH18: =FE18+7 -> 45705 | FI18: =FE18+3 -> 2025-02-13 | FL18: =FI18+7 -> 45708 | FM18: =FI18+4 -> 2025-02-17 | FP18: =FM18+7 -> 45712 | FQ18: =FM18+3 -> 2025-02-20 | FT18: =FQ18+7 -> 45715 | FU18: =FQ18+4 -> 2025-02-24 | FX18: =FU18+7 -> 45719 | FY18: =FU18+3 -> 2025-02-27 | GB18: =FY18+7 -> 45722 | GC18: =FY18+4 -> 2025-03-03 | GF18: =GC18+7 -> 45726 | GG18: =GC18+3 -> 2025-03-06 | GJ18: =GG18+7 -> 45729 | GK18: =GG18+4 -> 2025-03-10 | GN18: =GK18+7 -> 45733 | GO18: =GK18+3 -> 2025-03-13 | GR18: =GO18+7 -> 45736 | GS18: =GO18+4 -> 2025-03-17 | GV18: =GS18+7 -> 45740 | GW18: =GS18+3 -> 2025-03-20 | GZ18: =GW18+7 -> 45743 | HA18: =GW18+4 -> 2025-03-24 | HD18: =HA18+7 -> 45747 | HE18: =HA18+3 -> 2025-03-27 | HH18: =HE18+7 -> 45750 | HI18: =HE18+4 -> 2025-03-31 | HL18: =HI18+7 -> 45754 | HM18: =HI18+3 -> 2025-04-03 | HP18: =HM18+7 -> 45757 | HQ18: =HM18+4 -> 2025-04-07 | HT18: =HQ18+7 -> 45761 | HU18: =HQ18+3 -> 2025-04-10 | HX18: =HU18+7 -> 45764 | HY18: 2025-04-24 | IB18: =HY18+7 -> 45778 | IC18: =HY18+4 -> 2025-04-28 | IF18: =IC18+7 -> 45782 | IG18: =IC18+3 -> 2025-05-01 | IJ18: =IG18+7 -> 45785 | IK18: =IG18+4 -> 2025-05-05 | IN18: =IK18+7 -> 45789 | IO18: =IK18+3 -> 2025-05-08 | IR18: =IO18+7 -> 45792 | IS18: =IO18+4 -> 2025-05-12 | IV18: =IS18+7 -> 45796 | IW18: =IS18+3 -> 2025-05-15 | IZ18: =IW18+7 -> 45799 | JA18: =IW18+4 -> 2025-05-19 | JD18: =JA18+7 -> 45803 | JE18: =JA18+3 -> 2025-05-22 | JH18: =JE18+7 -> 45806 | JI18: =JE18+4 -> 2025-05-26 | JL18: =JI18+7 -> 45810 | JM18: =JI18+3 -> 2025-05-29 | JP18: =JM18+7 -> 45813 | JQ18: =JM18+4 -> 2025-06-02 | JT18: =JQ18+7 -> 45817 | JU18: =JQ18+3 -> 2025-06-05 | JX18: =JU18+7 -> 45820 | JY18: =JU18+4 -> 2025-06-09 | KB18: =JY18+7 -> 45824 | KC18: =JY18+3 -> 2025-06-12 | KF18: =KC18+7 -> 45827 | KG18: =KC18+4 -> 2025-06-16 | KJ18: =KG18+7 -> 45831 | KK18: =KG18+3 -> 2025-06-19 | KN18: =KK18+7 -> 45834 | KO18: =KK18+4 -> 2025-06-23 | KR18: =KO18+7 -> 45838 | KS18: =KO18+3 -> 2025-06-26 | KV18: =KS18+7 -> 45841 | KW18: =KS18+4 -> 2025-06-30 | KZ18: =KW18+7 -> 45845 | LA18: =KW18+3 -> 2025-07-03 | LD18: =LA18+7 -> 45848
A19: 15:00:00 | C19: 15:15:00
A20: 15:15:00 | C20: 15:30:00
A21: 15:30:00 | C21: 15:45:00
A22: 15:45:00 | C22: 16:00:00
A23: 16:00:00 | C23: 16:15:00
A24: 16:15:00 | C24: 16:30:00
A25: 16:30:00 | C25: 16:45:00
A26: 16:45:00 | C26: 17:00:00
A27: 17:00:00 | C27: 17:15:00
A28: 17:15:00 | C28: 17:30:00
A29: 17:30:00 | C29: 17:45:00
A30: 17:45:00 | C30: 18:00:00
A31: 18:00:00 | C31: 18:15:00
A32: 18:15:00 | C32: 18:30:00
A33: 18:30:00 | C33: 18:45:00
A34: 18:45:00 | C34: 19:00:00
A35: 19:00:00 | C35: 19:15:00
A36: 19:15:00 | C36: 19:30:00
A37: 19:30:00 | C37: 19:45:00
A38: 19:45:00 | C38: 20:00:00
A39: 20:00:00 | C39: 20:15:00
A40: 20:15:00 | C40: 20:30:00
A41: 20:30:00 | C41: 20:45:00
A42: 20:45:00 | C42: 21:00:00
A43: Espai Assignat
A45: Comentaris: | BA45: Tutories Acadèmiques | FI45: Activitats Campus | GS45: Tutories Acadèmiques | IG45: Festiu- Festa del Treball | JY45: Festiu- Pasqua Granada
A96: Model | B96: Aula | D96: ECTS | E96: Assignatures | J96: Grups | K96: Graus | L96: Sem | M96: Curs
A97: 1A | B97: 11 (GA/100) | D97: 4 | K97: GEI | L97: 1er | M97: 1
A98: 1B | B98: 12 (GA/101) | D98: 3 | E98: 103578 Aprenentatge Integrat de Continguts i Llengua (AICLE) a l'Educació Primària | J98: 1 | K98: GEP | L98: 2on | M98: 2
A99: 2 | B99: 13 (GA/102) | D99: 4 | E99: 103580 L'Aprenentatge de Llengua Estrangera (Anglès) en l'Educació Primària Mitjançant les TIC | J99: 1/20 | K99: GEP-GEI | L99: Anual | M99: 3
A100: 3 | B100: 14 (GA/103) | D100: 5 | J100: 1/70 | K100: GPE-GES | M100: 4
A101: 4 | B101: 15 (GA/104) | D101: 6 | J101: 2 | K101: GES
A102: 5 | B102: 16 (GA/111) | D102: 7 | J102: 3 | K102: GPE
A103: 6 | B103: 17 (GA/112) | D103: 8 | J103: 4
B104: 18 (GA/117) | D104: 9 | J104: 4/40
B105: 19 (GA/119) | D105: 10 | J105: 20
B106: 21 (GA/200) | D106: 12 | J106: 21
B107: 22 (GA/201) | D107: 15 | J107: 31
B108: 24 (GA/203) | J108: 41
B109: 25 (GA/204) | J109: 61
B110: 26 (GA/211) | J110: 62
B111: 27 (GA/212) | J111: 70
B112: 28 (GA/218) | J112: 71
B113: 29 (GA/219) | J113: 90
B114: 31 (GA/300) | J114: 90/1
B115: 33 (GA/302)
B116: 35 (GA/304)
B117: 36 (GA/311)
B118: 37 (GA/312)
B119: 39 ( GA/319)
B120: 41 (GA/400)
B121: 43 ( GA/402)
B122: 44 (GA/403)
B123: 45 (GA/404)
B124: 46 (GA/411)
B125: 47 (GA/412)
B126: 48 (GA/418)
B127: 49 (GA/419)
B128: 61 (G6/005)
B129: 62 (G6/006)
B130: 63 ( G6/007)
B131: E.T (G6/009)
B132: 65 (G6/107)
B133: 69 (G6/208)
B134: 51 (G5/-104)
B135: 52 (G5/-106)
B136: 71 (GL/505)
B137: 72 (GL/502)
B138: 73 (GL/305)
B139: 74 (GL/402)
B140: 81 (GS/012)
B141: 82 (GS/013)
B142: 83 (GB/002)
B143: L1 (GL/102)
B144: L2 (GL/105)
B145: L3 (GA/318)
B146: Inf2 (G6/106)
B147: Inf3 (G6/105)
B148: Inf4 (G6/103)
B149: Inf5 (G6/208)
B150: Inf6 (G6/202)
B151: S1 (GB/012)
B152: S2 (GB/003)
B153: S.foniatria (GB/005)
B154: S. Polivalent (GD/000)
B155: Taller 1 (GL/308)
B156: Taller 2 (GL/306)
